[Event "XIX Najdorf Memorial 2019"]
[Site "Warsaw"]
[Date "2019.07.11"]
[Round "6.12"]
[White "Krysztofiak, Marcin"]
[Black "Harsha Bharathakoti"]
[Result "1/2-1/2"]
[ECO "D30"]
[WhiteElo "2382"]
[BlackElo "2486"]
[Annotator "ChessBase"]
[PlyCount "64"]
[EventDate "2019.07.06"]
[EventType "swiss"]
[EventCountry "POL"]
[SourceTitle "playchess.com"]
[Source "ChessBase"]
[SourceQuality "1"]
[TimeControl "40/5400+30:1800+30"]

1. Nf3 {[%emt 0:00:00]} d5 {[%emt 0:00:03]} 2. d4 {[%emt 0:00:00]} Nf6 {[%emt 0:00:19]} 3. c4 {[%emt 0:00:34]} e6 {[%emt 0:00:07]} 4. Bg5 {[%emt 0:00:37]} Bb4+ {[%emt 0:00:11]} 5. Nbd2 {[%emt 0:00:36]} dxc4 {[%emt 0:01:15]} 6. e3 {[%emt 0:00:39]} b5 {[%emt 0:01:26]} 7. Be2 {[%emt 0:01:15]} Nbd7 {[%emt 0:02:28]} 8. O-O {[%emt 0:01:19]} Bb7 {[%emt 0:01:31]} 9. b3 {[%emt 0:07:44]} c3 {[%emt 0:06:02]} 10. Nb1 {[%emt 0:02:28]} a6 {[%emt 0:00:54]} 11. a3 {[%emt 0:01:22]} Be7 {[%emt 0:00:07]} 12. Nxc3 {[%emt 0:01:03]} c5 {[%emt 0:02:00]} 13. dxc5 {[%emt 0:05:20]} Nxc5 {[%emt 0:08:11]} 14. b4 {[%emt 0:13:41]} Nce4 {[%emt 0:08:28]} 15. Nxe4 {[%emt 0:01:33]} Nxe4 {[%emt 0:06:34]} 16. Bxe7 {[%emt 0:15:50]} Qxe7 {[%emt 0:24:08]} 17. Qd4 {[%emt 0:04:50]} O-O {[%emt 0:00:09]} 18. Rac1 {[%emt 0:02:09]} Rfd8 {[%emt 0:03:07]} 19. Qb2 {[%emt 0:06:59]} Bd5 {[%emt 0:06:23]} 20. Ne5 {[%emt 0:07:10]} Qg5 {[%emt 0:16:03]} 21. Bf3 {[%emt 0:07:15]} f6 {[%emt 0:01:33]} 22. Nd3 {[%emt 0:02:33]} Nd2 {[%emt 0:04:48]} 23. Bxd5 {[%emt 0:00:28]} Qxd5 {[%emt 0:00:03]} 24. Qxd2 {[%emt 0:00:18]} Qxd3 {[%emt 0:00:03]} 25. Qa2 {[%emt 0:03:37]} Rd6 {[%emt 0:00:50]} 26. a4 {[%emt 0:02:50]} Rad8 {[%emt 0:03:56]} 27. h3 {[%emt 0:01:24]} h6 {[%emt 0:01:41]} 28. Rc5 {[%emt 0:03:27]} Rd5 {[%emt 0:00:22]} 29. axb5 {[%emt 0:00:44]} axb5 {[%emt 0:00:07]} 30. Rfc1 {[%emt 0:01:00]} Qe4 {[%emt 0:01:38]} 31. Qb1 {[%emt 0:03:14]} Qxb1 {[%emt 0:00:27]} 32. Rxb1 {[%emt 0:00:08]} Kf7 {[%emt 0:00:20]} 1/2-1/2

[Event "XIX Najdorf Memorial 2019"]
[Site "Warsaw"]
[Date "2019.07.11"]
[Round "6.12"]
[White "Baum, Jonasz"]
[Black "Zebracki, Tomasz"]
[Result "1-0"]
[ECO "E04"]
[WhiteElo "2308"]
[BlackElo "2183"]
[Annotator "NA"]
[PlyCount "101"]
[EventDate "2019.07.06"]
[EventType "swiss"]
[EventCountry "POL"]
[SourceTitle "playchess.com"]
[Source "ChessBase"]
[SourceQuality "1"]
[TimeControl "40/5400+30:1800+30"]

1. d4 {[%emt 0:00:00]} Nf6 {[%emt 0:00:00]} 2. c4 {[%emt 0:00:00]} e6 {[%emt 0:00:00]} 3. g3 {[%emt 0:00:00]} d5 {[%emt 0:01:04]} 4. Nf3 {[%emt 0:00:00]} dxc4 {[%emt 0:00:43]} 5. Bg2 {[%emt 0:00:01]} a6 {[%emt 0:00:24]} 6. O-O {[%emt 0:00:18]} Nc6 {[%emt 0:00:27]} 7. e3 {[%emt 0:00:10]} Bd7 {[%emt 0:01:05]} 8. Qe2 {[%emt 0:00:14]} Bd6 {[%emt 0:02:22]} 9. Qxc4 {[%emt 0:01:04]} O-O {[%emt 0:00:11]} 10. Nc3 {[%emt 0:01:41]} e5 {[%emt 0:01:05]} 11. dxe5 {[%emt 0:01:59]} Bxe5 {[%emt 0:05:33]} 12. Nxe5 {[%emt 0:04:09]} Nxe5 {[%emt 0:00:03]} 13. Qc5 {[%emt 0:03:36]} Nd3 {[%emt 0:24:42]} 14. Qd4 {[%emt 0:02:04]} Bc8 {[%emt 0:00:25]} 15. Rd1 {[%emt 0:04:00]} Qxd4 {[%emt 0:02:25]} 16. exd4 {[%emt 0:00:03]} Nb4 {[%emt 0:00:43]} 17. Bf4 {[%emt 0:09:22]} Be6 {[%emt 0:11:00]} 18. Bxc7 {[%emt 0:12:23]} Nfd5 {[%emt 0:00:07]} 19. Bd6 {[%emt 0:02:52]} Rfd8 {[%emt 0:01:28]} 20. Bxb4 {[%emt 0:00:20]} Nxb4 {[%emt 0:00:02]} 21. Bxb7 {[%emt 0:02:36]} Rab8 {[%emt 0:02:38]} 22. Be4 {[%emt 0:00:31]} f5 {[%emt 0:06:31]} 23. d5 {[%emt 0:10:47]} Bf7 {[%emt 0:01:21]} 24. Bxf5 {[%emt 0:00:37]} Nxd5 {[%emt 0:00:15]} 25. Nxd5 {[%emt 0:00:07]} Rxd5 {[%emt 0:00:06]} 26. Rxd5 {[%emt 0:00:13]} Bxd5 {[%emt 0:00:01]} 27. b3 {[%emt 0:00:30]} Bf3 {[%emt 0:00:31]} 28. Rc1 {[%emt 0:01:37]} Rb5 {[%emt 0:06:58]} 29. Bd3 {[%emt 0:02:35]} Rb6 {[%emt 0:00:42]} 30. Bc4+ {[%emt 0:04:09]} Kf8 {[%emt 0:00:13]} 31. Rc3 {[%emt 0:00:13]} Bb7 {[%emt 0:00:56]} 32. f3 {[%emt 0:00:59]} a5 {[%emt 0:01:05]} 33. Kf2 {[%emt 0:00:44]} a4 {[%emt 0:01:46]} 34. Rd3 {[%emt 0:00:44]} a3 {[%emt 0:00:50]} 35. Rd8+ {[%emt 0:05:04]} Ke7 {[%emt 0:00:02]} 36. Rg8 {[%emt 0:03:08]} Kf6 {[%emt 0:01:25]} 37. Rb8 {[%emt 0:00:17]} Ke5 {[%emt 0:00:25]} 38. Ke3 {[%emt 0:02:04]} h6 {[%emt 0:02:00]} 39. f4+ {[%emt 0:01:10]} Kd6 {[%emt 0:00:39]} 40. Ba6 {[%emt 0:00:00]} Rxa6 {[%emt 0:00:00]} 41. Rxb7 {[%emt 0:02:13]} g5 {[%emt 0:06:29]} 42. fxg5 {[%emt 0:00:37]} hxg5 {[%emt 0:00:11]} 43. Rb5 {[%emt 0:00:45]} Rc6 {[%emt 0:02:04]} 44. Kd2 {[%emt 0:00:23]} Kc7 {[%emt 0:02:31]} 45. Rxg5 {[%emt 0:00:15]} Rf6 {[%emt 0:00:39]} 46. Kc3 {[%emt 0:03:36]} Rf2 {[%emt 0:02:12]} 47. Kb4 {[%emt 0:00:10]} Rxa2 {[%emt 0:00:12]} 48. h4 {[%emt 0:00:13]} Ra1 {[%emt 0:00:18]} 49. h5 {[%emt 0:00:39]} a2 {[%emt 0:02:59]} 50. Ka3 {[%emt 0:00:13]} Kd6 {[%emt 0:00:33]} 51. Kb2 {[%emt 0:00:17] Kd5} 1-0

[Event "XIX Najdorf Memorial 2019"]
[Site "Warsaw"]
[Date "2019.07.11"]
[Round "6.13"]
[White "Oglaza, Oskar"]
[Black "Jarmula, Lukasz"]
[Result "1/2-1/2"]
[ECO "E32"]
[WhiteElo "2345"]
[BlackElo "2480"]
[Annotator "ChessBase"]
[PlyCount "59"]
[EventDate "2019.07.06"]
[EventType "swiss"]
[EventCountry "POL"]
[SourceTitle "playchess.com"]
[Source "ChessBase"]
[SourceQuality "1"]
[TimeControl "40/5400+30:1800+30"]

1. d4 {[%emt 0:00:00]} Nf6 {[%emt 0:00:36]} 2. c4 {[%emt 0:00:00]} e6 {[%emt 0:00:04]} 3. Nc3 {[%emt 0:00:00]} Bb4 {[%emt 0:00:12]} 4. Qc2 {[%emt 0:00:00]} O-O {[%emt 0:00:32]} 5. Nf3 {[%emt 0:00:04]} c5 {[%emt 0:01:43]} 6. dxc5 {[%emt 0:00:06]} Na6 {[%emt 0:00:04]} 7. g3 {[%emt 0:00:06]} Nxc5 {[%emt 0:00:04]} 8. Bg2 {[%emt 0:00:04]} Nce4 {[%emt 0:01:23]} 9. O-O {[%emt 0:00:08]} Nxc3 {[%emt 0:03:59]} 10. bxc3 {[%emt 0:00:09]} Be7 {[%emt 0:00:04]} 11. e4 {[%emt 0:00:13]} d6 {[%emt 0:00:06]} 12. e5 {[%emt 0:00:05]} dxe5 {[%emt 0:00:04]} 13. Nxe5 {[%emt 0:00:04]} Qc7 {[%emt 0:01:01]} 14. Qe2 {[%emt 0:04:07]} Bd6 {[%emt 0:01:27]} 15. Bf4 {[%emt 0:00:11]} Ne8 {[%emt 0:00:22]} 16. c5 {[%emt 0:00:36]} Qxc5 {[%emt 0:00:05]} 17. c4 {[%emt 0:00:05]} Rb8 {[%emt 0:08:21]} 18. Rab1 {[%emt 0:09:58]} f6 {[%emt 0:15:51]} 19. Nd3 {[%emt 0:02:46]} Qc7 {[%emt 0:04:12]} 20. c5 {[%emt 0:21:45]} Bxf4 {[%emt 0:00:13]} 21. Nxf4 {[%emt 0:00:04]} Qxc5 {[%emt 0:04:35]} 22. Nxe6 {[%emt 0:01:49]} Qe7 {[%emt 0:01:10]} 23. Rfe1 {[%emt 0:00:39]} Qxe6 {[%emt 0:03:55]} 24. Qxe6+ {[%emt 0:00:17]} Bxe6 {[%emt 0:00:05]} 25. Rxe6 {[%emt 0:00:08]} Rf7 {[%emt 0:07:18]} 26. Bxb7 {[%emt 0:07:25]} Rd7 {[%emt 0:00:24]} 27. Ree1 {[%emt 0:00:57]} Rbxb7 {[%emt 0:00:32]} 28. Rxb7 {[%emt 0:00:13]} Rxb7 {[%emt 0:00:04]} 29. Rxe8+ {[%emt 0:00:05]} Kf7 {[%emt 0:00:05]} 30. Re2 {[%emt 0:01:25]} 1/2-1/2

[Event "XIX Najdorf Memorial 2019"]
[Site "Warsaw"]
[Date "2019.07.11"]
[Round "6.14"]
[White "Gagare, Shardul"]
[Black "Kowalski, Igor"]
[Result "1/2-1/2"]
[ECO "A05"]
[WhiteElo "2476"]
[BlackElo "2320"]
[Annotator "ChessBase"]
[PlyCount "40"]
[EventDate "2019.07.06"]
[EventType "swiss"]
[EventCountry "POL"]
[SourceTitle "playchess.com"]
[Source "ChessBase"]
[SourceQuality "1"]
[TimeControl "40/5400+30:1800+30"]

1. Nf3 {[%emt 0:01:11]} Nf6 {[%emt 0:00:00]} 2. c4 {[%emt 0:00:13]} g6 {[%emt 0:00:00]} 3. b3 {[%emt 0:02:25]} Bg7 {[%emt 0:00:00]} 4. Bb2 {[%emt 0:00:04]} O-O {[%emt 0:02:35]} 5. g3 {[%emt 0:00:19]} b6 {[%emt 0:05:05]} 6. Bg2 {[%emt 0:00:24]} Bb7 {[%emt 0:00:04]} 7. O-O {[%emt 0:00:13]} c5 {[%emt 0:00:10]} 8. Nc3 {[%emt 0:00:46]} d6 {[%emt 0:02:03]} 9. e3 {[%emt 0:11:13]} Ne4 {[%emt 0:04:10]} 10. d4 {[%emt 0:07:57]} Nxc3 {[%emt 0:14:43]} 11. Bxc3 {[%emt 0:00:08]} Nd7 {[%emt 0:00:04]} 12. Qc2 {[%emt 0:06:49]} cxd4 {[%emt 0:01:02]} 13. Bxd4 {[%emt 0:01:02]} Rc8 {[%emt 0:03:52]} 14. Bxg7 {[%emt 0:10:40]} Kxg7 {[%emt 0:00:05]} 15. e4 {[%emt 0:00:55]} b5 {[%emt 0:02:15]} 16. Qb2+ {[%emt 0:00:13]} Kg8 {[%emt 0:00:07]} 17. cxb5 {[%emt 0:00:54]} Bxe4 {[%emt 0:00:06]} 18. Qd4 {[%emt 0:04:52]} Bxf3 {[%emt 0:01:00]} 19. Bxf3 {[%emt 0:04:08]} Rc5 {[%emt 0:00:20]} 20. a4 {[%emt 0:04:27]} Qc7 {[%emt 0:01:57]} 1/2-1/2

[Event "XIX Najdorf Memorial 2019"]
[Site "Warsaw"]
[Date "2019.07.11"]
[Round "6.14"]
[White "Terletsky, Oleg"]
[Black "Zochowski, Kacper"]
[Result "1/2-1/2"]
[ECO "C41"]
[WhiteElo "2408"]
[BlackElo "2251"]
[Annotator "NA"]
[PlyCount "89"]
[EventDate "2019.07.06"]
[EventType "swiss"]
[EventCountry "POL"]
[SourceTitle "playchess.com"]
[Source "ChessBase"]
[SourceQuality "1"]
[TimeControl "40/5400+30:1800+30"]

1. e4 {[%emt 0:00:00]} d6 {[%emt 0:02:29]} 2. d4 {[%emt 0:00:00]} Nf6 {[%emt 0:00:05]} 3. Nc3 {[%emt 0:00:00]} e5 {[%emt 0:00:02]} 4. Nf3 {[%emt 0:00:00]} Nbd7 {[%emt 0:00:50]} 5. Bc4 {[%emt 0:00:00]} Be7 {[%emt 0:00:13]} 6. O-O {[%emt 0:00:02]} O-O {[%emt 0:00:03]} 7. h3 {[%emt 0:00:04]} c6 {[%emt 0:01:00]} 8. a4 {[%emt 0:00:06]} a5 {[%emt 0:01:40]} 9. Re1 {[%emt 0:07:50]} exd4 {[%emt 0:02:51]} 10. Nxd4 {[%emt 0:00:35]} Nc5 {[%emt 0:00:16]} 11. Bf4 {[%emt 0:10:45]} Be6 {[%emt 0:19:24]} 12. Bf1 {[%emt 0:08:51]} d5 {[%emt 0:17:34]} 13. exd5 {[%emt 0:02:20]} Nxd5 {[%emt 0:04:31]} 14. Nxd5 {[%emt 0:00:09]} Qxd5 {[%emt 0:04:56]} 15. Nxe6 {[%emt 0:03:20]} Qxd1 {[%emt 0:07:42]} 16. Raxd1 {[%emt 0:00:59]} Nxe6 {[%emt 0:00:17]} 17. Bg3 {[%emt 0:01:19]} Bf6 {[%emt 0:02:04]} 18. c3 {[%emt 0:01:59]} Rfd8 {[%emt 0:01:26]} 19. Bc4 {[%emt 0:02:53]} Rxd1 {[%emt 0:02:03]} 20. Rxd1 {[%emt 0:00:02]} Rd8 {[%emt 0:00:40]} 21. Rxd8+ {[%emt 0:00:41]} Bxd8 {[%emt 0:00:30]} 22. Bxe6 {[%emt 0:04:53]} fxe6 {[%emt 0:00:56]} 23. Kf1 {[%emt 0:00:04]} Kf7 {[%emt 0:05:25]} 24. Be5 {[%emt 0:00:47]} b5 {[%emt 0:04:19]} 25. axb5 {[%emt 0:05:02]} cxb5 {[%emt 0:01:24]} 26. Ke2 {[%emt 0:00:06]} a4 {[%emt 0:15:40]} 27. Kd3 {[%emt 0:03:35]} Be7 {[%emt 0:01:04]} 28. Bc7 {[%emt 0:02:20]} Bc5 {[%emt 0:03:16]} 29. f3 {[%emt 0:01:57]} g6 {[%emt 0:00:06]} 30. Ba5 {[%emt 0:00:27]} Kf6 {[%emt 0:00:41]} 31. Ke4 {[%emt 0:01:21]} Bf2 {[%emt 0:01:28]} 32. Bb4 {[%emt 0:00:21]} h5 {[%emt 0:00:28]} 33. Bd6 {[%emt 0:04:41]} Bb6 {[%emt 0:00:33]} 34. g4 {[%emt 0:16:26]} Kf7 {[%emt 0:00:13]} 35. Kd3 {[%emt 0:00:46]} Ke8 {[%emt 0:00:39]} 36. c4 {[%emt 0:00:17]} Kd7 {[%emt 0:00:09]} 37. Ba3 {[%emt 0:07:00]} Kc6 {[%emt 0:00:06]} 38. cxb5+ {[%emt 0:00:14]} Kxb5 {[%emt 0:00:02]} 39. Ke4 {[%emt 0:00:38]} Kc4 {[%emt 0:00:24]} 40. Ke5 {[%emt 0:00:00]} Bd4+ {[%emt 0:00:00]} 41. Kxe6 {[%emt 0:04:33]} Kb3 {[%emt 0:02:22]} 42. gxh5 {[%emt 0:01:41]} gxh5 {[%emt 0:00:39]} 43. f4 {[%emt 0:00:30]} Bxb2 {[%emt 0:00:14]} 44. Bd6 {[%emt 0:04:33]} a3 {[%emt 0:01:36]} 45. Bxa3 {[%emt 0:00:16]} 1/2-1/2

[Event "XIX Najdorf Memorial 2019"]
[Site "Warsaw"]
[Date "2019.07.11"]
[Round "6.15"]
[White "Fiedorek, Michal"]
[Black "Krishna Teja, N."]
[Result "1/2-1/2"]
[ECO "B19"]
[WhiteElo "2241"]
[BlackElo "2368"]
[Annotator "NA"]
[PlyCount "99"]
[EventDate "2019.07.06"]
[EventType "swiss"]
[EventCountry "POL"]
[SourceTitle "playchess.com"]
[Source "ChessBase"]
[SourceQuality "1"]
[TimeControl "40/5400+30:1800+30"]

1. e4 c6 2. d4 d5 3. Nc3 dxe4 4. Nxe4 Bf5 5. Ng3 Bg6 6. h4 h6 7. Nf3 Nd7 8. h5 Bh7 9. Bd3 Bxd3 10. Qxd3 e6 11. Bd2 Ngf6 12. O-O-O Be7 13. Kb1 O-O 14. Ne4 Nxe4 15. Qxe4 Nf6 16. Qe2 Qd5 17. Ne5 Qe4 18. Qxe4 Nxe4 19. Be1 Rfd8 20. f3 Nf6 21. Bh4 Rd5 22. c4 Rd6 23. Rd3 Rad8 24. Rhd1 Kf8 25. g4 Nd7 26. Bxe7+ Kxe7 27. Kc2 b6 28. b4 Ke8 29. R3d2 f6 30. c5 Nxe5 31. cxd6 Nxf3 32. Rd3 Ng5 33. Ra3 Ra8 34. Rc3 Kd7 35. b5 Rc8 36. Kd3 Nf7 37. Ra3 a5 38. bxa6 Nxd6 39. Rb3 Kc7 40. Rdb1 b5 41. a4 Kb6 42. axb5 Nxb5 43. Ra3 Ka7 44. Ra4 Rd8 45. Rc1 Rd6 46. Ke3 Kb6 47. Rb1 Ka7 48. Rc1 Kb6 49. Rb1 Ka7 50. Rc1 1/2-1/2

[Event "XIX Najdorf Memorial 2019"]
[Site "Warsaw"]
[Date "2019.07.11"]
[Round "6.16"]
[White "Akesson, Ralf"]
[Black "Czopor, Maciej"]
[Result "1/2-1/2"]
[ECO "A05"]
[WhiteElo "2365"]
[BlackElo "2250"]
[Annotator "NA"]
[PlyCount "78"]
[EventDate "2019.07.06"]
[EventType "swiss"]
[EventCountry "POL"]
[SourceTitle "playchess.com"]
[Source "ChessBase"]
[SourceQuality "1"]
[TimeControl "40/5400+30:1800+30"]

1. Nf3 {[%emt 0:00:00]} Nf6 {[%emt 0:00:00]} 2. c4 {[%emt 0:00:00]} b6 {[%emt 0:00:22]} 3. d4 {[%emt 0:01:06]} Bb7 {[%emt 0:00:21]} 4. g3 {[%emt 0:00:43]} c5 {[%emt 0:00:26]} 5. d5 {[%emt 0:01:57]} b5 {[%emt 0:00:19]} 6. Bg2 {[%emt 0:00:47]} d6 {[%emt 0:02:29]} 7. O-O {[%emt 0:00:44]} bxc4 {[%emt 0:01:19]} 8. Nc3 {[%emt 0:00:36]} g6 {[%emt 0:00:15]} 9. Nd2 {[%emt 0:06:55]} Bg7 {[%emt 0:00:39]} 10. Nxc4 {[%emt 0:00:10]} O-O {[%emt 0:01:19]} 11. Re1 {[%emt 0:01:37]} Nbd7 {[%emt 0:02:16]} 12. e4 {[%emt 0:00:53]} Ba6 {[%emt 0:07:29]} 13. Bf1 {[%emt 0:12:46]} Bxc4 {[%emt 0:23:39]} 14. Bxc4 {[%emt 0:00:12]} Rb8 {[%emt 0:00:06]} 15. Qc2 {[%emt 0:04:14]} Qc7 {[%emt 0:03:01]} 16. Bd2 {[%emt 0:03:43]} Ne5 {[%emt 0:06:13]} 17. Be2 {[%emt 0:00:21]} c4 {[%emt 0:00:22]} 18. Rab1 {[%emt 0:03:30]} Rfc8 {[%emt 0:07:17]} 19. Kg2 {[%emt 0:08:24]} Qb6 {[%emt 0:11:53]} 20. h3 {[%emt 0:05:15]} Qa6 {[%emt 0:04:17]} 21. Red1 {[%emt 0:07:36]} Nd3 {[%emt 0:04:40]} 22. Be3 {[%emt 0:05:06]} Nd7 {[%emt 0:04:22]} 23. a3 {[%emt 0:15:41]} N7c5 {[%emt 0:04:34]} 24. f3 {[%emt 0:02:57]} Qa5 {[%emt 0:11:56]} 25. Bxc5 {[%emt 0:03:11]} Rxc5 {[%emt 0:00:47]} 26. Bxd3 {[%emt 0:01:03]} cxd3 {[%emt 0:00:02]} 27. Rxd3 {[%emt 0:00:34]} Bxc3 {[%emt 0:00:36]} 28. bxc3 {[%emt 0:06:28]} Rxb1 {[%emt 0:00:02]} 29. Qxb1 {[%emt 0:00:04]} Qxa3 {[%emt 0:00:20]} 30. e5 {[%emt 0:00:15]} Rxc3 {[%emt 0:02:07]} 31. Rxc3 {[%emt 0:00:25]} Qxc3 {[%emt 0:00:02]} 32. exd6 {[%emt 0:00:21]} Qd2+ {[%emt 0:01:46]} 33. Kh1 {[%emt 0:04:52]} exd6 {[%emt 0:00:42]} 34. Qb8+ {[%emt 0:00:15]} Kg7 {[%emt 0:00:05]} 35. Qxd6 {[%emt 0:00:05]} Qe1+ {[%emt 0:00:21]} 36. Kg2 {[%emt 0:00:08]} Qe2+ {[%emt 0:00:07]} 37. Kg1 {[%emt 0:00:04]} Qe1+ {[%emt 0:00:42]} 38. Kg2 {[%emt 0:00:06]} Qe2+ {[%emt 0:00:14]} 39. Kg1 {[%emt 0:00:05]} Qe1+ {[%emt 0:01:28]} 1/2-1/2

[Event "XIX Najdorf Memorial 2019"]
[Site "Warsaw"]
[Date "2019.07.11"]
[Round "6.17"]
[White "Jaskolka, Tomasz"]
[Black "Malek, Daniel"]
[Result "1-0"]
[ECO "A45"]
[WhiteElo "2236"]
[BlackElo "2362"]
[Annotator "NA"]
[PlyCount "55"]
[EventDate "2019.07.06"]
[EventType "swiss"]
[EventCountry "POL"]
[SourceTitle "playchess.com"]
[Source "ChessBase"]
[SourceQuality "1"]
[TimeControl "40/5400+30:1800+30"]

1. d4 {[%emt 0:00:00]} Nf6 {[%emt 0:00:00]} 2. Bf4 {[%emt 0:00:00]} c5 {[%emt 0:00:00]} 3. e3 {[%emt 0:00:19]} Qb6 {[%emt 0:00:00]} 4. Nc3 {[%emt 0:01:48]} a6 {[%emt 0:00:32]} 5. dxc5 {[%emt 0:13:02]} Qxc5 {[%emt 0:17:34]} 6. Qd4 {[%emt 0:08:40]} Qa5 {[%emt 0:06:52]} 7. b4 {[%emt 0:15:46]} Qd8 {[%emt 0:02:00]} 8. b5 {[%emt 0:14:29]} d6 {[%emt 0:00:27]} 9. Bg5 {[%emt 0:00:27]} e6 {[%emt 0:09:54]} 10. bxa6 {[%emt 0:10:23]} bxa6 {[%emt 0:01:02]} 11. Bxf6 {[%emt 0:10:53]} Qxf6 {[%emt 0:00:47]} 12. Ne4 {[%emt 0:05:52]} Qxd4 {[%emt 0:01:06]} 13. exd4 {[%emt 0:00:03]} Be7 {[%emt 0:06:41]} 14. Rb1 {[%emt 0:00:34]} Nc6 {[%emt 0:01:13]} 15. Nf3 {[%emt 0:01:53]} d5 {[%emt 0:13:23]} 16. Ned2 {[%emt 0:06:09]} Bb4 {[%emt 0:02:55]} 17. Rb3 {[%emt 0:00:47]} a5 {[%emt 0:00:32]} 18. c3 {[%emt 0:00:43]} Be7 {[%emt 0:02:48]} 19. Rb6 {[%emt 0:00:09]} Bd7 {[%emt 0:00:34]} 20. Bb5 {[%emt 0:00:36]} Nb8 {[%emt 0:00:38]} 21. Ne5 {[%emt 0:00:35]} Bxb5 {[%emt 0:00:27]} 22. Rxb5 {[%emt 0:00:03]} f6 {[%emt 0:00:31]} 23. Nd3 {[%emt 0:00:24]} Kf7 {[%emt 0:00:41]} 24. Ke2 {[%emt 0:00:16]} Nc6 {[%emt 0:04:14]} 25. Rb6 {[%emt 0:00:06]} Rhc8 {[%emt 0:00:24]} 26. a4 {[%emt 0:05:30]} Rab8 {[%emt 0:00:49]} 27. Rhb1 {[%emt 0:00:20]} Bd8 {[%emt 0:00:43]} 28. Rxc6 {[%emt 0:00:14]} 1-0

[Event "XIX Najdorf Memorial 2019"]
[Site "Warsaw"]
[Date "2019.07.11"]
[Round "6.18"]
[White "Krstulovic, Alex"]
[Black "Sowul, Bartosz"]
[Result "1-0"]
[ECO "A58"]
[WhiteElo "2360"]
[BlackElo "2210"]
[Annotator "NA"]
[PlyCount "65"]
[EventDate "2019.07.06"]
[EventType "swiss"]
[EventCountry "POL"]
[SourceTitle "playchess.com"]
[Source "ChessBase"]
[SourceQuality "1"]
[TimeControl "40/5400+30:1800+30"]

1. d4 Nf6 2. c4 c5 3. d5 b5 4. cxb5 a6 5. bxa6 g6 6. Nc3 Bg7 7. e4 $14 O-O 8. e5 Ne8 9. h4 Bxe5 10. Bh6 Ng7 11. Nf3 Bf6 12. h5 d6 13. Qd2 Qb6 14. Ng5 Nxa6 15. Rc1 Bf5 16. hxg6 fxg6 17. f3 Nb4 18. a3 Nc2+ 19. Rxc2 Bxc2 20. Qxc2 Rfb8 21. Bxg7 Bxg5 22. Ne4 c4 23. Nxg5 Qe3+ 24. Qe2 Qxg5 25. Bc3 h5 26. Kf2 Rf8 27. Qe6+ Kh7 28. Bxc4 Rf4 29. Rxh5+ Qxh5 30. Qxe7+ Kh6 31. Bg7+ Kh7 32. Bf6+ Kg8 33. Qg7# 1-0

[Event "XIX Najdorf Memorial 2019"]
[Site "Warsaw"]
[Date "2019.07.11"]
[Round "6.19"]
[White "Deszczynski, Adam"]
[Black "Kopylov, Daniel"]
[Result "0-1"]
[ECO "B67"]
[WhiteElo "2304"]
[BlackElo "2209"]
[Annotator "NA"]
[PlyCount "100"]
[EventDate "2019.07.06"]
[EventType "swiss"]
[EventCountry "POL"]
[SourceTitle "playchess.com"]
[Source "ChessBase"]
[SourceQuality "1"]
[TimeControl "40/5400+30:1800+30"]

1. e4 c5 2. Nf3 d6 3. d4 cxd4 4. Nxd4 Nf6 5. Nc3 Nc6 6. Bg5 e6 7. Qd2 a6 8. O-O-O Bd7 9. f3 Be7 10. Kb1 Qc7 11. h4 h6 12. Be3 h5 13. Bg5 Nxd4 14. Qxd4 b5 15. Qd2 b4 16. Ne2 a5 17. Nd4 Rb8 18. Bd3 a4 19. Rhe1 e5 20. Ne2 Be6 21. Ng3 a3 22. b3 g6 23. Nf1 Nd7 24. Bxe7 Kxe7 25. Ne3 Qc5 26. Bc4 Rhd8 27. Bxe6 fxe6 28. Nc4 Nf6 29. Qe3 Rbc8 30. Qxc5 Rxc5 31. Rd2 Ne8 32. Red1 Rdc8 33. Rd3 R8c6 34. R1d2 Ra6 35. Kc1 Rcc6 36. Kd1 Nc7 37. c3 bxc3 38. Rc2 Nb5 39. Ne3 Ra8 40. Kc1 Nd4 41. Rcxc3 Ne2+ 42. Kd2 Nxc3 43. Rxc3 Rxc3 44. Kxc3 Rc8+ 45. Kb4 Rc1 46. Kxa3 Re1 47. Nc4 Re2 48. b4 Rxg2 49. b5 Kd7 50. Kb3 g5 0-1

[Event "XIX Najdorf Memorial 2019"]
[Site "Warsaw"]
[Date "2019.07.11"]
[Round "6.20"]
[White "Malovanyi, Yulian"]
[Black "Marczuk, Dominik"]
[Result "0-1"]
[ECO "B12"]
[WhiteElo "2204"]
[BlackElo "2300"]
[Annotator "RC"]
[PlyCount "138"]
[EventDate "2019.07.06"]
[EventType "swiss"]
[EventCountry "POL"]
[TimeControl "40/5400+30:1800+30"]

1. e4 c6 2. d4 d5 3. e5 c5 4. dxc5 Nc6 5. Nf3 Bg4 6. Bb5 Qa5+ 7. Nc3 e6 8. a3 Bxc5 9. O-O Qc7 10. Re1 a6 11. Bxc6+ Qxc6 12. Be3 Bxe3 13. Rxe3 Ne7 14. Ne2 Bxf3 15. Rxf3 Qc7 16. Rb3 Qxe5 17. Rxb7 Nf5 18. c4 O-O 19. cxd5 exd5 20. Ng3 Nd6 21. Rb4 Rfd8 22. Qd4 Qxd4 23. Rxd4 Nc4 24. b3 Na5 25. Rad1 Nxb3 26. Rxd5 Rxd5 27. Rxd5 g6 28. f3 Rc8 29. Rd3 Nc1 30. Rd5 Nb3 31. Rd3 Rc1+ 32. Nf1 Nc5 33. Rd5 Kg7 34. Kf2 Kf6 35. Ne3 Ke6 36. Rd4 Rc3 37. Nc4 Ke7 38. Nb6 Rxa3 39. Nc8+ Kf6 40. Rd6+ Ke5 41. Rc6 Nd3+ 42. Kg3 a5 43. Rc7 Ke6 44. Nb6 Ra2 45. Rc6+ Ke5 46. Rc7 Kf6 47. Rc6+ Kg7 48. Nd5 a4 49. Rc3 Ne1 50. Ne3 Rb2 51. Ra3 Rb3 52. Rxb3 axb3 53. Nc4 Nd3 54. f4 b2 55. Nd2 Kf6 56. Kf3 Ne1+ 57. Kf2 Nc2 58. Nb1 Kf5 59. g3 Ke4 60. Ke2 Nd4+ 61. Kd2 Nf3+ 62. Kc3 Nxh2 63. Kxb2 Kf3 64. Nc3 Kxg3 65. Nd5 h5 66. Kc2 h4 67. Kd2 h3 68. Ke2 Ng4 69. f5 h2 0-1

[Event "XIX Najdorf Memorial 2019"]
[Site "Warsaw"]
[Date "2019.07.11"]
[Round "6.22"]
[White "Wisniewski, Michal"]
[Black "Bednarek, Sylwester"]
[Result "0-1"]
[ECO "A04"]
[WhiteElo "2103"]
[BlackElo "2291"]
[Annotator "NA"]
[PlyCount "106"]
[EventDate "2019.07.06"]
[EventType "swiss"]
[EventCountry "POL"]
[SourceTitle "playchess.com"]
[Source "ChessBase"]
[SourceQuality "1"]
[TimeControl "40/5400+30:1800+30"]

1. Nf3 f5 2. d3 Nf6 3. e4 d6 4. exf5 Bxf5 5. d4 Nc6 6. Bb5 a6 7. Ba4 b5 8. Bb3 Na5 9. c3 Nxb3 10. Qxb3 Qd7 11. O-O Bd3 12. Re1 Qf5 13. Nbd2 Bc2 14. Qa3 g5 15. c4 g4 16. Nh4 Qd3 17. Qxd3 Bxd3 18. cxb5 axb5 19. Re3 Bg6 20. Nxg6 hxg6 21. Ne4 Kd7 22. Nxf6+ exf6 23. d5 Rh5 24. Rd3 Bg7 25. h3 Rah8 26. Kh2 gxh3 27. gxh3 Rf5 28. Kg2 Rhh5 29. Rg3 g5 30. Rd3 Rh4 31. Be3 g4 32. hxg4 Rxg4+ 33. Kf1 Rh5 34. Ke2 f5 35. Rad1 Ra4 36. Rb3 Rxa2 37. Bd4 Bxd4 38. Rxd4 Ra5 39. Rg3 Kc8 40. Rg7 Ra4 41. Rd2 Rh3 42. Rf7 Re4+ 43. Kd1 Rf3 44. b3 Rxb3 45. Rxf5 Rc3 46. Rf7 b4 47. f4 b3 48. f5 Rb4 49. Rb2 Rd4+ 50. Ke1 Rc1+ 51. Ke2 Rc2+ 52. Ke3 Rxb2 53. Kxd4 Rd2+ 0-1